[Event "Allsvenskan Div I 3 2023/2024: SS Manhem - Varbergs SK"]
[Site "Goteborgs Schackcentrum, Vegatan 20, Gothenburg, Sweden"]
[Date "2024.03.17"]
[Round "1.1"]
[White "Eriksson, Kristian"]
[Black "Welin, Mats"]
[Result "0-1"]
[TimeControl "90 minutes for 40 moves + 30 minutes for the rest of the game + 30 seconds per move from move one."]
[BlackTitle "FM"]
[WhiteFideId "1705172"]
[BlackFideId "1705180"]
[WhiteElo "2042"]
[BlackElo "2275"]

1. e4 {[%clk 01:30:55]} {[%emt 00:00:04]} e5 {[%clk 01:30:29]} {[%emt
00:00:31]} 2. Nf3 {[%clk 01:31:15]} {[%emt 00:00:09]} Nc6 {[%clk 01:30:10]}
{[%emt 00:00:50]} 3. d4 {[%clk 01:31:10]} {[%emt 00:00:35]} exd4 {[%clk
01:30:16]} {[%emt 00:00:24]} 4. Nxd4 {[%clk 01:31:33]} {[%emt 00:00:08]} Nf6
{[%clk 01:29:56]} {[%emt 00:00:49]} 5. Nxc6 {[%clk 01:31:41]} {[%emt 00:00:22]}
bxc6 {[%clk 01:30:09]} {[%emt 00:00:18]} 6. e5 {[%clk 01:31:57]} {[%emt
00:00:13]} Qe7 {[%clk 01:29:57]} {[%emt 00:00:42]} 7. Qe2 {[%clk 01:32:19]}
{[%emt 00:00:07]} Nd5 {[%clk 01:30:20]} {[%emt 00:00:09]} 8. c4 {[%clk
01:32:13]} {[%emt 00:00:35]} Ba6 {[%clk 01:27:51]} {[%emt 00:02:59]} 9. Nd2
{[%clk 01:31:44]} {[%emt 00:00:57]} g6 {[%emt 00:03:28]} 10. Nf3 {[%clk
01:30:20]} Qb4+ {[%clk 01:18:39]} {[%emt 00:08:40]} 11. Kd1 {[%clk 01:30:27]}
{[%emt 00:00:21]} Ne7 {[%clk 01:18:02]} {[%emt 00:01:08]} 12. a3 {[%clk
01:21:11]} {[%emt 00:09:46]} Qb6 {[%clk 01:12:24]} {[%emt 00:06:09]} 13. Bg5
{[%clk 01:11:42]} {[%emt 00:09:58]} O-O-O {[%clk 00:41:27]} {[%emt 00:31:27]}
14. Kc2 {[%clk 01:09:31]} {[%emt 00:02:39]} d5 {[%clk 00:31:12]} {[%emt
00:10:47]} 15. exd6 {[%clk 01:04:00]} {[%emt 00:06:01]} cxd6 {[%clk 00:25:00]}
{[%emt 00:06:41]} 16. Bf6 {[%clk 01:00:33]} {[%emt 00:03:57]} Rg8 {[%clk
00:24:51]} {[%emt 00:00:39]} 17. Rd1 {[%clk 00:50:18]} {[%emt 00:10:45]} d5
{[%clk 00:22:50]} {[%emt 00:02:32]} 18. Bxe7 {[%clk 00:46:02]} {[%emt
00:04:46]} Re8 {[%clk 00:22:37]} {[%emt 00:00:43]} 19. Qe3 {[%clk 00:38:55]}
{[%emt 00:07:36]} Qxe3 {[%clk 00:21:10]} {[%emt 00:01:58]} 20. fxe3 {[%clk
00:38:44]} {[%emt 00:00:41]} Rxe7 {[%clk 00:20:08]} {[%emt 00:01:31]} 21. cxd5
{[%clk 00:38:42]} {[%emt 00:00:34]} Bxf1 {[%clk 00:20:15]} {[%emt 00:00:22]} 22.
Rhxf1 {[%clk 00:38:40]} {[%emt 00:00:31]} cxd5 {[%clk 00:20:36]} {[%emt
00:00:09]} 23. Rxd5 {[%clk 00:36:25]} {[%emt 00:02:47]} Rxe3 {[%clk 00:20:27]}
{[%emt 00:00:38]} 24. Re5 {[%clk 00:30:26]} {[%emt 00:06:28]} Rxe5 {[%clk
00:17:50]} {[%emt 00:03:08]} 25. Nxe5 {[%clk 00:30:38]} {[%emt 00:00:18]} f5
{[%clk 00:18:11]} {[%emt 00:00:09]} 26. h3 {[%clk 00:21:45]} {[%emt 00:09:22]}
Bg7 {[%clk 00:14:17]} {[%emt 00:04:25]} 27. Nd3 {[%clk 00:18:33]} {[%emt
00:03:42]} Kd7 {[%clk 00:13:22]} {[%emt 00:01:25]} 28. b4 {[%clk 00:15:28]}
{[%emt 00:03:35]} Kd6 {[%clk 00:09:22]} {[%emt 00:04:30]} 29. Rd1 {[%clk
00:14:41]} {[%emt 00:01:16]} Re8 {[%clk 00:05:18]} {[%emt 00:04:35]} 30. Nc5+
{[%clk 00:12:53]} {[%emt 00:02:17]} Kc6 {[%clk 00:05:32]} {[%emt 00:00:17]} 31.
Rd2 {[%clk 00:04:38]} {[%emt 00:08:44]} Re3 {[%clk 00:03:56]} {[%emt 00:02:07]}
32. Rd3 {[%clk 00:04:28]} {[%emt 00:00:40]} Re2+ {[%clk 00:03:25]} {[%emt
00:01:01]} 33. Rd2 {[%clk 00:04:51]} {[%emt 00:00:07]} Rxd2+ {[%clk 00:02:51]}
{[%emt 00:01:05]} 34. Kxd2 {[%clk 00:05:18]} {[%emt 00:00:02]} Kb5 {[%clk
00:02:25]} {[%emt 00:00:55]} 35. Kc2 {[%clk 00:03:13]} {[%emt 00:02:35]} Kc4
{[%clk 00:01:51]} {[%emt 00:01:05]} 36. Ne6 {[%clk 00:03:09]} {[%emt 00:00:33]}
Be5 {[%clk 00:01:59]} {[%emt 00:00:23]} 37. Nf8 {[%clk 00:02:51]} {[%emt
00:00:48]} Bd6 {[%clk 00:02:00]} {[%emt 00:00:28]} 38. Nxh7 {[%clk 00:02:32]}
{[%emt 00:00:50]} Be7 {[%clk 00:02:11]} {[%emt 00:00:18]} 39. h4 {[%clk
00:01:39]} {[%emt 00:01:24]} Bxh4 {[%clk 00:02:22]} {[%emt 00:00:19]} 40. Nf8
{[%clk 00:02:00]} {[%emt 00:00:09]} g5 {[%clk 00:02:33]} {[%emt 00:00:19]} 41.
Ng6 {[%clk 00:29:09]} {[%emt 00:03:20]} Bf2 {[%clk 00:24:46]} {[%emt 00:08:18]}
42. Ne5+ {[%clk 00:27:51]} {[%emt 00:01:47]} Kd5 {[%clk 00:24:48]} {[%emt
00:00:29]} 43. Nd3 {[%clk 00:24:02]} {[%emt 00:04:18]} Be3 {[%clk 00:23:41]}
{[%emt 00:01:37]} 44. Ne1 {[%clk 00:21:39]} {[%emt 00:02:53]} Ke4 {[%clk
00:22:23]} {[%emt 00:01:48]} 45. Kc3 {[%clk 00:17:46]} {[%emt 00:04:23]} g4
{[%clk 00:21:17]} {[%emt 00:01:36]} 46. a4 {[%clk 00:17:12]} {[%emt 00:01:05]}
f4 {[%clk 00:20:56]} {[%emt 00:00:50]} 47. b5 {[%clk 00:16:48]} {[%emt
00:00:54]} Bb6 {[%clk 00:15:56]} {[%emt 00:05:31]} 48. Nd3 {[%clk 00:07:03]}
{[%emt 00:10:14]} Ke3 {[%clk 00:15:14]} {[%emt 00:01:13]} 49. Kc4 {[%clk
00:06:13]} {[%emt 00:01:20]} Bc7 {[%clk 00:14:26]} {[%emt 00:01:17]} 50. Nb4
{[%clk 00:04:18]} {[%emt 00:02:26]} f3 {[%clk 00:12:35]} {[%emt 00:02:21]} 51.
Nd5+ {[%clk 00:04:12]} {[%emt 00:00:36]} Kd2 {[%clk 00:12:51]} {[%emt
00:00:14]} 52. gxf3 {[%clk 00:04:14]} {[%emt 00:00:28]} gxf3 {[%clk 00:13:15]}
{[%emt 00:00:06]} 53. Nf6 {[%clk 00:03:53]} {[%emt 00:00:50]} Ke3 {[%clk
00:09:41]} {[%emt 00:04:05]} 54. Ng4+ {[%clk 00:02:50]} {[%emt 00:01:32]} Kf4
{[%clk 00:08:35]} {[%emt 00:01:36]} 55. Nf2 {[%clk 00:02:57]} {[%emt 00:00:23]}
Bb6 {[%clk 00:08:05]} {[%emt 00:01:01]} 56. Nd3 {[%clk 00:01:09]} {[%emt
00:02:18]} Ke4 {[%clk 00:08:23]} {[%emt 00:00:11]} 57. Kc3 {[%clk 00:00:58]}
{[%emt 00:00:42]} f2 {[%clk 00:08:15]} {[%emt 00:00:39]} 58. Nxf2+ {[%clk
00:01:19]} {[%emt 00:00:09]} Bxf2 {[%clk 00:08:40]} {[%emt 00:00:05]} 0-1

[ePGN "0.1;DGT LiveChess/2.2.6"]

[Event "Allsvenskan Div I 3 2023/2024: SS Manhem - Varbergs SK"]
[Site "Goteborgs Schackcentrum, Vegatan 20, Gothenburg, Sweden"]
[Date "2024.03.17"]
[Round "1.2"]
[White "Troedsson, Anton"]
[Black "Wahlstrom, Lennart"]
[Result "0-1"]
[TimeControl "90 minutes for 40 moves + 30 minutes for the rest of the game + 30 seconds per move from move one."]
[WhiteFideId "1746006"]
[BlackFideId "1706829"]
[WhiteElo "2169"]
[BlackElo "2075"]

1. Nf3 {[%clk 01:30:57]} {[%emt 00:00:02]} d5 {[%clk 01:30:53]} {[%emt
00:00:07]} 2. b3 {[%clk 01:31:17]} {[%emt 00:00:10]} Nf6 {[%clk 01:31:01]}
{[%emt 00:00:22]} 3. Bb2 {[%clk 01:31:32]} {[%emt 00:00:15]} e6 {[%clk
01:31:17]} {[%emt 00:00:15]} 4. g3 {[%clk 01:31:52]} {[%emt 00:00:10]} Be7
{[%clk 01:31:03]} {[%emt 00:00:43]} 5. Bg2 {[%clk 01:32:15]} {[%emt 00:00:07]}
O-O {[%clk 01:31:03]} {[%emt 00:00:30]} 6. O-O {[%clk 01:32:38]} {[%emt
00:00:08]} c5 {[%clk 01:30:37]} {[%emt 00:00:55]} 7. d4 {[%clk 01:30:24]}
{[%emt 00:02:43]} Nc6 {[%clk 01:29:02]} {[%emt 00:02:05]} 8. Nbd2 {[%clk
01:30:38]} {[%emt 00:00:17]} b6 {[%clk 01:25:35]} {[%emt 00:03:58]} 9. c4
{[%clk 01:30:49]} {[%emt 00:00:19]} Bb7 {[%clk 01:24:53]} {[%emt 00:01:12]} 10.
Rc1 {[%clk 01:30:38]} {[%emt 00:00:40]} Rc8 {[%clk 01:24:03]} {[%emt 00:01:20]}
11. e3 {[%clk 01:30:26]} {[%emt 00:00:43]} Re8 {[%clk 01:17:02]} {[%emt
00:07:31]} 12. Qe2 {[%clk 01:30:38]} {[%emt 00:00:18]} Ba6 {[%clk 01:03:01]}
{[%emt 00:14:30]} 13. Rfd1 {[%clk 01:30:19]} {[%emt 00:00:49]} cxd4 {[%clk
01:01:11]} {[%emt 00:02:21]} 14. Nxd4 {[%clk 01:29:57]} {[%emt 00:00:52]} Nxd4
{[%clk 00:52:20]} {[%emt 00:09:21]} 15. Bxd4 {[%clk 01:30:12]} {[%emt
00:00:15]} Ba3 {[%clk 00:50:45]} {[%emt 00:02:04]} 16. Rc2 {[%clk 01:30:13]}
{[%emt 00:00:29]} Qe7 {[%clk 00:49:04]} {[%emt 00:02:12]} 17. Nb1 {[%clk
01:25:10]} {[%emt 00:05:33]} Bd6 {[%clk 00:43:35]} {[%emt 00:05:57]} 18. Qd2
{[%clk 01:23:08]} {[%emt 00:02:33]} Bb4 {[%clk 00:41:23]} {[%emt 00:02:41]} 19.
Bxf6 {[%clk 01:21:16]} {[%emt 00:02:25]} gxf6 {[%clk 00:41:51]} {[%emt
00:00:02]} 20. Qe2 {[%clk 01:19:34]} {[%emt 00:02:11]} dxc4 {[%clk 00:33:41]}
{[%emt 00:08:40]} 21. a3 {[%clk 01:15:33]} {[%emt 00:04:32]} Bd6 {[%clk
00:27:24]} {[%emt 00:06:46]} 22. bxc4 {[%clk 01:07:09]} {[%emt 00:08:54]} Red8
{[%clk 00:25:31]} {[%emt 00:02:23]} 23. a4 {[%clk 01:04:14]} {[%emt 00:03:25]}
Bb4 {[%clk 00:22:32]} {[%emt 00:03:29]} 24. Rd4 {[%clk 00:59:04]} {[%emt
00:05:40]} f5 {[%clk 00:14:27]} {[%emt 00:08:35]} 25. Bf1 {[%clk 00:49:46]}
{[%emt 00:09:49]} Qf6 {[%clk 00:11:55]} {[%emt 00:03:01]} 26. Rxd8+ {[%clk
00:48:51]} {[%emt 00:01:26]} Rxd8 {[%clk 00:12:05]} {[%emt 00:00:18]} 27. Rb2
{[%clk 00:44:09]} {[%emt 00:05:13]} Bxc4 {[%clk 00:10:17]} {[%emt 00:02:18]} 28.
Qc2 {[%clk 00:44:00]} {[%emt 00:00:39]} Bxf1 {[%clk 00:09:46]} {[%emt
00:00:59]} 29. Rxb4 {[%clk 00:43:16]} {[%emt 00:01:16]} Bd3 {[%clk 00:09:10]}
{[%emt 00:01:06]} 30. Qc3 {[%clk 00:43:24]} {[%emt 00:00:22]} Qxc3 {[%clk
00:08:00]} {[%emt 00:01:39]} 31. Nxc3 {[%clk 00:43:49]} {[%emt 00:00:05]} Rc8
{[%clk 00:07:38]} {[%emt 00:00:53]} 32. Rb3 {[%clk 00:43:13]} {[%emt 00:01:06]}
Bc4 {[%clk 00:06:51]} {[%emt 00:01:17]} 33. Ra3 {[%clk 00:43:25]} {[%emt
00:00:18]} a6 {[%clk 00:06:17]} {[%emt 00:01:04]} 34. Kg2 {[%clk 00:43:30]}
{[%emt 00:00:25]} b5 {[%clk 00:06:16]} {[%emt 00:00:31]} 35. axb5 {[%clk
00:43:53]} {[%emt 00:00:08]} axb5 {[%clk 00:06:42]} {[%emt 00:00:05]} 36. Na2
{[%clk 00:39:45]} {[%emt 00:04:38]} Bd5+ {[%clk 00:06:38]} {[%emt 00:00:33]} 37.
Kh3 {[%clk 00:40:11]} {[%emt 00:00:03]} Rc4 {[%clk 00:05:39]} {[%emt 00:01:30]}
38. Rd3 {[%clk 00:37:07]} {[%emt 00:03:34]} Ra4 {[%clk 00:04:35]} {[%emt
00:01:34]} 39. Nc3 {[%clk 00:37:31]} {[%emt 00:00:07]} Ra3 {[%clk 00:04:42]}
{[%emt 00:00:22]} 40. Rxd5 {[%clk 00:37:57]} {[%emt 00:00:04]} exd5 {[%clk
00:04:48]} {[%emt 00:00:23]} 41. Nxb5 {[%clk 00:38:25]} {[%emt 00:00:03]} Ra2
{[%clk 00:04:14]} {[%emt 00:01:04]} 42. Kg2 {[%clk 00:38:41]} {[%emt 00:00:14]}
Kg7 {[%clk 00:03:28]} {[%emt 00:01:16]} 43. Kf3 {[%clk 00:37:40]} {[%emt
00:01:31]} Kf6 {[%clk 00:02:28]} {[%emt 00:01:30]} 44. Nd4 {[%emt 00:03:41]}
Rd2 {[%clk 00:30:08]} 45. h3 {[%clk 01:05:45]} {[%emt 00:02:05]} Ra2 {[%clk
00:28:33]} {[%emt 00:02:04]} 46. h4 {[%clk 01:06:00]} {[%emt 00:00:15]} Rd2
{[%clk 00:27:10]} {[%emt 00:01:52]} 47. Kg2 {[%clk 01:05:40]} {[%emt 00:00:51]}
Rb2 {[%clk 00:27:10]} {[%emt 00:00:29]} 48. Nf3 {[%clk 01:05:56]} {[%emt
00:00:14]} h6 {[%clk 00:26:48]} {[%emt 00:00:53]} 49. Nd4 {[%clk 01:05:52]}
{[%emt 00:00:34]} Ke5 {[%clk 00:26:27]} {[%emt 00:00:51]} 50. Kf3 {[%clk
01:06:08]} {[%emt 00:00:14]} Rb6 {[%clk 00:26:15]} {[%emt 00:00:40]} 51. Nc2
{[%clk 01:05:07]} {[%emt 00:01:32]} Rc6 {[%clk 00:26:02]} {[%emt 00:00:43]} 52.
Nd4 {[%clk 01:01:56]} {[%emt 00:03:41]} Rc4 {[%clk 00:25:51]} {[%emt 00:00:41]}
53. Nb3 {[%clk 01:02:04]} {[%emt 00:00:23]} h5 {[%clk 00:24:14]} {[%emt
00:02:08]} 54. Na5 {[%clk 01:01:18]} {[%emt 00:01:15]} Rc3 {[%clk 00:22:50]}
{[%emt 00:01:53]} 55. Ke2 {[%clk 01:01:05]} {[%emt 00:00:44]} Ke4 {[%clk
00:21:34]} {[%emt 00:01:45]} 56. f3+ {[%clk 00:58:33]} {[%emt 00:03:03]} Ke5
{[%clk 00:21:54]} {[%emt 00:00:10]} 57. Kd2 {[%clk 00:58:36]} {[%emt 00:00:27]}
d4 {[%clk 00:21:02]} {[%emt 00:01:21]} 58. exd4+ {[%clk 00:58:13]} {[%emt
00:00:54]} Kxd4 {[%clk 00:21:28]} {[%emt 00:00:04]} 59. Nb7 {[%clk 00:58:14]}
{[%emt 00:00:30]} Rxf3 {[%clk 00:21:22]} {[%emt 00:00:36]} 60. Nd6 {[%clk
00:58:35]} {[%emt 00:00:08]} f4 {[%clk 00:19:34]} {[%emt 00:02:19]} 61. Nxf7
{[%clk 00:57:58]} {[%emt 00:01:08]} fxg3 {[%clk 00:19:33]} {[%emt 00:00:30]} 62.
Ng5 {[%clk 00:58:18]} {[%emt 00:00:09]} Rf2+ {[%clk 00:19:37]} {[%emt
00:00:27]} 63. Ke1 {[%clk 00:58:42]} {[%emt 00:00:06]} Ke3 {[%clk 00:19:45]}
{[%emt 00:00:21]} 0-1

[ePGN "0.1;DGT LiveChess/2.2.6"]

[Event "Allsvenskan Div I 3 2023/2024: SS Manhem - Varbergs SK"]
[Site "Goteborgs Schackcentrum, Vegatan 20, Gothenburg, Sweden"]
[Date "2024.03.17"]
[Round "1.3"]
[White "Warefelt, Niclas"]
[Black "Akesson, Joel"]
[Result "1/2-1/2"]
[TimeControl "90 minutes for 40 moves + 30 minutes for the rest of the game + 30 seconds per move from move one."]
[BlackTitle "FM"]
[WhiteFideId "1731890"]
[BlackFideId "1705040"]
[WhiteElo "1946"]
[BlackElo "2208"]

1. d4 {[%clk 01:30:53]} {[%emt 00:00:06]} Nf6 {[%clk 01:30:40]} {[%emt
00:00:20]} 2. Nf3 {[%clk 01:30:32]} {[%emt 00:00:51]} e6 {[%clk 01:30:07]}
{[%emt 00:01:04]} 3. e3 {[%clk 01:28:35]} {[%emt 00:02:27]} b6 {[%clk
01:27:55]} {[%emt 00:02:42]} 4. Bd3 {[%clk 01:27:28]} {[%emt 00:01:37]} Bb7
{[%clk 01:24:36]} {[%emt 00:03:49]} 5. Nbd2 {[%clk 01:26:29]} {[%emt 00:01:27]}
c5 {[%clk 01:23:57]} {[%emt 00:01:10]} 6. O-O {[%clk 01:25:50]} {[%emt
00:01:10]} cxd4 {[%clk 01:22:04]} {[%emt 00:02:23]} 7. exd4 {[%clk 01:24:07]}
{[%emt 00:02:12]} Be7 {[%clk 01:21:58]} {[%emt 00:00:35]} 8. c3 {[%clk
01:21:34]} {[%emt 00:03:04]} O-O {[%clk 01:19:50]} {[%emt 00:02:39]} 9. Qc2
{[%clk 01:19:07]} {[%emt 00:02:56]} Nc6 {[%clk 01:11:24]} {[%emt 00:08:56]} 10.
Ne5 {[%clk 01:08:23]} {[%emt 00:11:15]} Rc8 {[%clk 01:03:53]} {[%emt 00:08:00]}
11. Nxc6 {[%clk 01:06:59]} {[%emt 00:01:54]} Bxc6 {[%clk 01:03:11]} {[%emt
00:01:12]} 12. f4 {[%clk 01:02:22]} {[%emt 00:05:08]} Qc7 {[%clk 00:49:12]}
{[%emt 00:14:28]} 13. Nf3 {[%clk 01:00:28]} {[%emt 00:02:23]} d6 {[%clk
00:44:12]} {[%emt 00:05:32]} 14. Bd2 {[%clk 00:53:42]} {[%emt 00:07:15]} Qb7
{[%clk 00:41:08]} {[%emt 00:03:33]} 15. Rae1 {[%clk 00:49:11]} {[%emt
00:05:01]} g6 {[%clk 00:37:14]} {[%emt 00:04:24]} 16. Bc1 {[%clk 00:45:10]}
{[%emt 00:04:32]} Rfe8 {[%clk 00:31:47]} {[%emt 00:05:57]} 17. Ng5 {[%clk
00:35:12]} {[%emt 00:10:28]} Bf8 {[%clk 00:31:21]} {[%emt 00:00:54]} 18. h3
{[%clk 00:28:54]} {[%emt 00:06:50]} b5 {[%clk 00:28:25]} {[%emt 00:03:26]} 19.
b3 {[%clk 00:21:20]} {[%emt 00:08:05]} Bg7 {[%clk 00:21:03]} {[%emt 00:07:52]}
20. Ba3 {[%clk 00:20:21]} {[%emt 00:01:28]} h6 {[%clk 00:18:43]} {[%emt
00:02:50]} 21. Nxf7 {[%clk 00:17:26]} {[%emt 00:03:25]} Qxf7 {[%clk 00:18:34]}
{[%emt 00:00:38]} 22. Bxg6 {[%clk 00:17:51]} {[%emt 00:00:07]} Qd7 {[%clk
00:18:00]} {[%emt 00:01:02]} 23. Bxe8 {[%clk 00:18:15]} {[%emt 00:00:07]} Rxe8
{[%clk 00:18:10]} {[%emt 00:00:18]} 24. f5 {[%clk 00:17:07]} {[%emt 00:01:40]}
exf5 {[%clk 00:16:51]} {[%emt 00:01:49]} 25. Rxe8+ {[%clk 00:17:01]} {[%emt
00:00:36]} Qxe8 {[%clk 00:16:14]} {[%emt 00:01:07]} 26. Bxd6 {[%clk 00:15:58]}
{[%emt 00:01:34]} Qe3+ {[%clk 00:14:39]} {[%emt 00:02:04]} 27. Kh2 {[%clk
00:15:54]} {[%emt 00:00:34]} Ne4 {[%clk 00:13:49]} {[%emt 00:01:21]} 28. Rf3
{[%clk 00:11:12]} {[%emt 00:05:12]} Qe1 {[%clk 00:11:53]} {[%emt 00:02:24]} 29.
Bf4 {[%clk 00:07:14]} {[%emt 00:04:29]} Bd7 {[%clk 00:08:25]} {[%emt 00:03:59]}
30. Re3 {[%clk 00:06:00]} {[%emt 00:01:43]} Qf1 {[%clk 00:08:39]} {[%emt
00:00:12]} 31. Rf3 {[%clk 00:06:22]} {[%emt 00:00:13]} Qe1 {[%clk 00:09:01]}
{[%emt 00:00:07]} 1/2-1/2

[ePGN "0.1;DGT LiveChess/2.2.6"]

[Event "Allsvenskan Div I 3 2023/2024: SS Manhem - Varbergs SK"]
[Site "Goteborgs Schackcentrum, Vegatan 20, Gothenburg, Sweden"]
[Date "2024.03.17"]
[Round "1.4"]
[White "Fendrich, David"]
[Black "Martinsson, Erik"]
[Result "1-0"]
[TimeControl "90 minutes for 40 moves + 30 minutes for the rest of the game + 30 seconds per move from move one."]
[WhiteFideId "1705725"]
[BlackFideId "1731912"]
[WhiteElo "2162"]
[BlackElo "1779"]

1. g3 {[%clk 01:30:57]} {[%emt 00:00:02]} d5 {[%clk 01:29:21]} {[%emt
00:01:40]} 2. c4 {[%clk 01:31:17]} {[%emt 00:00:09]} c6 {[%clk 01:28:13]}
{[%emt 00:01:38]} 3. Bg2 {[%clk 01:30:18]} {[%emt 00:01:29]} Nf6 {[%clk
01:27:55]} {[%emt 00:00:48]} 4. Nf3 {[%clk 01:30:40]} {[%emt 00:00:08]} e6
{[%clk 01:25:08]} {[%emt 00:03:18]} 5. b3 {[%clk 01:29:20]} {[%emt 00:01:49]}
Bd6 {[%clk 01:22:34]} {[%emt 00:03:04]} 6. d4 {[%clk 01:23:40]} {[%emt
00:06:10]} O-O {[%clk 01:19:37]} {[%emt 00:03:27]} 7. O-O {[%clk 01:23:48]}
{[%emt 00:00:22]} Nbd7 {[%clk 01:18:20]} {[%emt 00:01:46]} 8. Nc3 {[%clk
01:17:37]} {[%emt 00:06:41]} b6 {[%clk 01:17:19]} {[%emt 00:01:31]} 9. Bb2
{[%clk 01:12:06]} {[%emt 00:06:01]} Bb7 {[%clk 01:12:37]} {[%emt 00:05:12]} 10.
Qc2 {[%clk 00:57:33]} {[%emt 00:15:03]} Rc8 {[%clk 01:08:33]} {[%emt 00:04:33]}
11. e4 {[%clk 00:51:01]} {[%emt 00:07:03]} dxe4 {[%clk 01:08:10]} {[%emt
00:00:52]} 12. Nxe4 {[%clk 00:51:24]} {[%emt 00:00:08]} Nxe4 {[%clk 01:07:41]}
{[%emt 00:00:59]} 13. Qxe4 {[%clk 00:51:47]} {[%emt 00:00:08]} Nf6 {[%clk
01:07:26]} {[%emt 00:00:45]} 14. Qc2 {[%clk 00:51:48]} {[%emt 00:00:28]} c5
{[%clk 00:59:27]} {[%emt 00:08:30]} 15. dxc5 {[%clk 00:50:04]} {[%emt
00:02:13]} Bxf3 {[%clk 00:54:12]} {[%emt 00:05:44]} 16. Bxf3 {[%clk 00:46:36]}
{[%emt 00:03:59]} Bxc5 {[%clk 00:53:44]} {[%emt 00:00:58]} 17. Rad1 {[%clk
00:41:38]} {[%emt 00:05:27]} Qe7 {[%clk 00:53:03]} {[%emt 00:01:12]} 18. Rd3
{[%clk 00:40:19]} {[%emt 00:01:49]} Rfd8 {[%clk 00:50:27]} {[%emt 00:03:06]} 19.
Rfd1 {[%clk 00:40:15]} {[%emt 00:00:34]} Rxd3 {[%clk 00:46:34]} {[%emt
00:04:22]} 20. Qxd3 {[%clk 00:40:29]} {[%emt 00:00:16]} a5 {[%clk 00:45:00]}
{[%emt 00:02:05]} 21. Be5 {[%clk 00:33:57]} {[%emt 00:07:02]} Ne8 {[%clk
00:35:28]} {[%emt 00:10:02]} 22. Be4 {[%clk 00:24:26]} {[%emt 00:10:01]} h6
{[%clk 00:26:22]} {[%emt 00:09:36]} 23. Kg2 {[%clk 00:21:48]} {[%emt 00:03:08]}
Nf6 {[%clk 00:24:57]} {[%emt 00:01:55]} 24. Bf3 {[%clk 00:21:40]} {[%emt
00:00:38]} Ne8 {[%clk 00:23:19]} {[%emt 00:02:08]} 25. h3 {[%clk 00:19:57]}
{[%emt 00:02:13]} Nf6 {[%clk 00:20:57]} {[%emt 00:02:52]} 26. Kf1 {[%clk
00:18:46]} {[%emt 00:01:41]} Ne8 {[%clk 00:18:38]} {[%emt 00:02:50]} 27. Bg2
{[%clk 00:18:33]} {[%emt 00:00:42]} Nf6 {[%clk 00:17:00]} {[%emt 00:02:08]} 28.
f4 {[%clk 00:18:04]} {[%emt 00:00:59]} Ne8 {[%clk 00:16:02]} {[%emt 00:01:29]}
29. Bf3 {[%clk 00:17:10]} {[%emt 00:01:23]} Nf6 {[%clk 00:15:36]} {[%emt
00:00:56]} 30. Kg2 {[%clk 00:15:11]} {[%emt 00:02:29]} Ne8 {[%clk 00:15:32]}
{[%emt 00:00:34]} 31. g4 {[%clk 00:09:18]} {[%emt 00:06:22]} Qh4 {[%clk
00:12:54]} {[%emt 00:03:08]} 32. Bb7 {[%clk 00:07:49]} {[%emt 00:02:01]} Qf2+
{[%clk 00:01:54]} {[%emt 00:11:29]} 33. Kh1 {[%clk 00:08:14]} {[%emt 00:00:04]}
Be3 {[%clk 00:01:01]} {[%emt 00:01:24]} 34. f5 {[%clk 00:03:39]} {[%emt
00:05:06]} f6 {[%clk 00:00:34]} {[%emt 00:00:57]} 35. Qd7 {[%clk 00:02:33]}
{[%emt 00:01:35]} fxe5 {[%clk 00:00:47]} {[%emt 00:00:17]} 36. Qxc8 {[%clk
00:01:58]} {[%emt 00:01:06]} Qg3 {[%clk 00:01:03]} {[%emt 00:00:13]} 37. Qxe8+
{[%clk 00:02:04]} {[%emt 00:00:24]} Kh7 {[%clk 00:01:31]} {[%emt 00:00:02]} 38.
Qg6+ {[%clk 00:02:15]} 1-0

[ePGN "0.1;DGT LiveChess/2.2.6"]